[Event "Turning Torso Chess Event 2021"]
[Site "Malmoe"]
[Date "2021.08.22"]
[Round "16.2"]
[White "Schussler, Harry"]
[Black "Pantzar, Milton"]
[Result "1/2-1/2"]
[ECO "D37"]
[WhiteElo "2410"]
[BlackElo "2424"]
[Annotator "ChessBase"]
[PlyCount "39"]
[EventDate "2021.08.20"]
[EventType "tourn"]
[EventCountry "SWE"]
[SourceTitle "playchess.com"]
[Source "ChessBase"]
[SourceQuality "1"]
[TimeControl "900+5"]

1. d4 {[%emt 0:00:02]} d5 {[%emt 0:00:03]} 2. Nf3 {[%emt 0:00:04]} Nf6 {
[%emt 0:00:05]} 3. c4 {[%emt 0:00:07]} e6 {[%emt 0:00:07]} 4. Nc3 {[%emt 0:00:
04]} h6 {[%emt 0:00:09]} 5. Bf4 {[%emt 0:00:35]} Bd6 {[%emt 0:00:02]} 6. Bxd6 {
[%emt 0:00:31]} Qxd6 {[%emt 0:00:03]} 7. e3 {[%emt 0:00:04]} O-O {[%emt 0:00:
19]} 8. Rc1 {[%emt 0:00:52]} a6 {[%emt 0:00:29]} 9. a3 {[%emt 0:00:38]} Qe7 {
[%emt 0:01:42]} 10. Be2 {[%emt 0:00:39]} dxc4 {[%emt 0:00:08]} 11. Bxc4 {
[%emt 0:00:03]} b5 {[%emt 0:00:02]} 12. Be2 {[%emt 0:00:08]} c5 {[%emt 0:01:47]
} 13. dxc5 {[%emt 0:00:33]} Rd8 {[%emt 0:00:02]} 14. Qc2 {[%emt 0:01:08]} Qxc5
{[%emt 0:00:08]} 15. Nd5 {[%emt 0:01:19]} Qxc2 {[%emt 0:01:14]} 16. Nxf6+ {
[%emt 0:00:02]} gxf6 {[%emt 0:00:02]} 17. Rxc2 {[%emt 0:00:01]} Bb7 {[%emt 0:
00:15]} 18. O-O {[%emt 0:00:07]} Nc6 {[%emt 0:00:33]} 19. Rfc1 {[%emt 0:00:16]}
Rac8 {[%emt 0:01:16]} 20. Kf1 {[%emt 0:00:02]} 1/2-1/2

[Event "Turning Torso Chess Event 2021"]
[Site "Malmoe"]
[Date "2021.08.22"]
[Round "10.1"]
[White "Blomqvist, Erik"]
[Black "Hector, Jonny"]
[Result "1-0"]
[ECO "B00"]
[WhiteElo "2537"]
[BlackElo "2465"]
[Annotator "RC"]
[PlyCount "89"]
[EventDate "2021.08.20"]
[EventType "tourn"]
[EventCountry "SWE"]
[SourceTitle "playchess.com"]
[Source "ChessBase"]
[SourceQuality "1"]
[TimeControl "900+5"]

1. e4 {[%emt 0:00:03]} Nc6 {[%emt 0:00:02]} 2. d4 {[%emt 0:00:09]} d5 {[%emt 0:
00:03]} 3. e5 {[%emt 0:00:02]} Bf5 {[%emt 0:00:04]} 4. c3 {[%emt 0:00:04]} e6 {
[%emt 0:00:04]} 5. Nd2 {[%emt 0:00:39]} f6 {[%emt 0:00:06]} 6. f4 {[%emt 0:00:
18]} g5 {[%emt 0:00:08]} 7. Ndf3 {[%emt 0:01:02]} fxe5 {[%emt 0:01:39]} 8. Nxe5
{[%emt 0:01:01]} Nxe5 {[%emt 0:00:24]} 9. fxe5 {[%emt 0:00:03]} g4 {[%emt 0:02:
10]} 10. Bd3 {[%emt 0:01:13]} Bxd3 {[%emt 0:00:15]} 11. Qxd3 {[%emt 0:00:02]}
Qd7 {[%emt 0:00:09]} 12. Ne2 {[%emt 0:00:22]} O-O-O {[%emt 0:00:14]} 13. O-O {
[%emt 0:02:26]} h5 {[%emt 0:02:10]} 14. Qg6 {[%emt 0:01:34]} Bh6 {[%emt 0:01:
16]} 15. Rf7 {[%emt 0:02:30]} Qe8 {[%emt 0:03:25]} 16. Bf4 {[%emt 0:00:24]} Rd7
{[%emt 0:00:25]} 17. Rg7 {[%emt 0:00:17]} Qf8 {[%emt 0:01:53]} 18. Rxg8 {
[%emt 0:01:37]} Rxg8 {[%emt 0:00:05]} 19. Qxh6 {[%emt 0:00:12]} Qe8 {[%emt 0:
00:26]} 20. Bg3 {[%emt 0:01:20]} Rh8 {[%emt 0:00:26]} 21. Qg5 {[%emt 0:00:03]}
Rf7 {[%emt 0:00:10]} 22. Bh4 {[%emt 0:00:28]} Qb5 {[%emt 0:00:03]} 23. Qd2 {
[%emt 0:00:02]} Rhh7 {[%emt 0:00:35]} 24. Nf4 {[%emt 0:00:13]} Qc6 {[%emt 0:00:
14]} 25. Rf1 {[%emt 0:00:11]} b6 {[%emt 0:00:03]} 26. b3 {[%emt 0:00:26]} Kb7 {
[%emt 0:00:01]} 27. Qd3 {[%emt 0:00:05]} Rf5 {[%emt 0:00:05]} 28. Bf6 {[%emt 0:
00:17]} h4 {[%emt 0:00:01]} 29. Nxe6 {[%emt 0:00:08]} Rxf1+ {[%emt 0:00:13]}
30. Kxf1 {[%emt 0:00:02]} Qxe6 {[%emt 0:00:15]} 31. Qxh7 {[%emt 0:00:01]} g3 {
[%emt 0:00:02]} 32. hxg3 {[%emt 0:00:11]} hxg3 {[%emt 0:00:01]} 33. Qg6 {
[%emt 0:00:04]} a5 {[%emt 0:00:08]} 34. a4 {[%emt 0:00:10]} c5 {[%emt 0:00:25]}
35. Ke2 {[%emt 0:00:06]} cxd4 {[%emt 0:00:03]} 36. cxd4 {[%emt 0:00:02]} Qc6 {
[%emt 0:00:01]} 37. Kd2 {[%emt 0:00:05]} b5 {[%emt 0:00:06]} 38. axb5 {[%emt 0:
00:03]} Qxb5 {[%emt 0:00:01]} 39. Qxg3 {[%emt 0:00:02]} a4 {[%emt 0:00:07]} 40.
bxa4 {[%emt 0:00:04]} Qb2+ {[%emt 0:00:02]} 41. Ke3 {[%emt 0:00:01]} Qc3+ {
[%emt 0:00:03]} 42. Kf4 {[%emt 0:00:03]} Qxd4+ {[%emt 0:00:03]} 43. Kf5 {
[%emt 0:00:02]} Qe4+ {[%emt 0:00:09]} 44. Ke6 {[%emt 0:00:09]} d4 {[%emt 0:00:
03]} 45. Qf3 {[%emt 0:00:03]} 1-0

[Event "Turning Torso Chess Event 2021"]
[Site "Malmoe"]
[Date "2021.08.22"]
[Round "13.2"]
[White "Hector, Jonny"]
[Black "Brynell, Stellan"]
[Result "1-0"]
[ECO "C02"]
[WhiteElo "2465"]
[BlackElo "2422"]
[Annotator "RC"]
[PlyCount "71"]
[EventDate "2021.08.20"]
[EventType "tourn"]
[EventCountry "SWE"]
[SourceTitle "playchess.com"]
[Source "ChessBase"]
[SourceQuality "1"]
[TimeControl "900+5"]

1. e4 {[%emt 0:00:04]} e6 {[%emt 0:00:08]} 2. d4 {[%emt 0:00:03]} d5 {[%emt 0:
00:02]} 3. e5 {[%emt 0:00:01]} c5 {[%emt 0:00:09]} 4. c3 {[%emt 0:00:02]} Nc6 {
[%emt 0:00:02]} 5. Nf3 {[%emt 0:00:02]} Bd7 {[%emt 0:00:02]} 6. Bd3 {[%emt 0:
00:03]} Rc8 {[%emt 0:00:02]} 7. O-O {[%emt 0:00:12]} cxd4 {[%emt 0:00:01]} 8.
Re1 {[%emt 0:00:20]} Qb6 {[%emt 0:01:40]} 9. Nbd2 {[%emt 0:01:35]} Nge7 {
[%emt 0:01:06]} 10. Rb1 {[%emt 0:01:27]} Ng6 {[%emt 0:00:29]} 11. Nb3 {[%emt 0:
01:43]} dxc3 {[%emt 0:00:24]} 12. bxc3 {[%emt 0:00:03]} Qc7 {[%emt 0:00:09]}
13. Nbd4 {[%emt 0:00:55]} a6 {[%emt 0:00:34]} 14. Qe2 {[%emt 0:01:26]} Be7 {
[%emt 0:00:10]} 15. g3 {[%emt 0:00:03]} O-O {[%emt 0:03:39]} 16. h4 {[%emt 0:
00:05]} b5 {[%emt 0:00:23]} 17. Nxc6 {[%emt 0:01:11]} Qxc6 {[%emt 0:00:50]} 18.
h5 {[%emt 0:00:21]} Nh8 {[%emt 0:01:04]} 19. Qc2 {[%emt 0:01:24]} g6 {[%emt 0:
00:16]} 20. Rb3 {[%emt 0:00:29]} b4 {[%emt 0:01:33]} 21. Qd2 {[%emt 0:00:59]}
bxc3 {[%emt 0:00:55]} 22. Qh6 {[%emt 0:00:02]} f5 {[%emt 0:00:14]} 23. exf6 {
[%emt 0:00:46]} Bxf6 {[%emt 0:00:48]} 24. hxg6 {[%emt 0:00:24]} Nxg6 {[%emt 0:
00:05]} 25. Bxg6 {[%emt 0:00:04]} hxg6 {[%emt 0:00:01]} 26. Ng5 {[%emt 0:00:21]
} Bxg5 {[%emt 0:00:27]} 27. Qxg6+ {[%emt 0:00:03]} Kh8 {[%emt 0:00:01]} 28.
Qh5+ {[%emt 0:00:42]} Kg8 {[%emt 0:00:18]} 29. Qxg5+ {[%emt 0:00:03]} Kf7 {
[%emt 0:00:04]} 30. Qh5+ {[%emt 0:00:04]} Kg8 {[%emt 0:00:21]} 31. Re5 {
[%emt 0:01:00]} Rf5 {[%emt 0:00:14]} 32. Qg6+ {[%emt 0:00:30]} Kh8 {[%emt 0:00:
09]} 33. Bf4 {[%emt 0:00:17]} Rcf8 {[%emt 0:00:38]} 34. Rxf5 {[%emt 0:00:29]}
Rxf5 {[%emt 0:00:01]} 35. Rb8+ {[%emt 0:00:04]} Bc8 {[%emt 0:00:01]} 36. Bh6 {
[%emt 0:00:11]} 1-0

[Event "Turning Torso Chess Event 2021"]
[Site "Malmoe"]
[Date "2021.08.22"]
[Round "16.3"]
[White "Grandelius, Nils"]
[Black "Smith, Axel"]
[Result "1-0"]
[ECO "A20"]
[WhiteElo "2666"]
[BlackElo "2451"]
[Annotator "ChessBase"]
[PlyCount "91"]
[EventDate "2021.08.20"]
[EventType "tourn"]
[EventCountry "SWE"]
[SourceTitle "playchess.com"]
[Source "ChessBase"]
[SourceQuality "1"]
[TimeControl "900+5"]

1. c4 {[%emt 0:00:02]} e5 {[%emt 0:00:01]} 2. d3 {[%emt 0:00:09]} Bb4+ {
[%emt 0:01:09]} 3. Nd2 {[%emt 0:00:04]} Nf6 {[%emt 0:00:22]} 4. Ngf3 {[%emt 0:
00:05]} Nc6 {[%emt 0:00:39]} 5. g3 {[%emt 0:00:52]} O-O {[%emt 0:00:06]} 6. Bg2
{[%emt 0:00:01]} Re8 {[%emt 0:00:25]} 7. O-O {[%emt 0:00:05]} a5 {[%emt 0:00:
10]} 8. a3 {[%emt 0:00:45]} Bxd2 {[%emt 0:00:44]} 9. Bxd2 {[%emt 0:00:05]} e4 {
[%emt 0:00:18]} 10. Ng5 {[%emt 0:02:08]} exd3 {[%emt 0:00:08]} 11. exd3 {
[%emt 0:00:02]} Nd4 {[%emt 0:02:30]} 12. Nf3 {[%emt 0:02:14]} Nxf3+ {[%emt 0:
00:34]} 13. Qxf3 {[%emt 0:00:02]} c6 {[%emt 0:00:40]} 14. Rfe1 {[%emt 0:01:20]}
d6 {[%emt 0:00:34]} 15. Bc3 {[%emt 0:01:05]} Rxe1+ {[%emt 0:00:09]} 16. Rxe1 {
[%emt 0:00:02]} Be6 {[%emt 0:00:01]} 17. Qf4 {[%emt 0:01:11]} d5 {[%emt 0:00:
57]} 18. c5 {[%emt 0:00:10]} a4 {[%emt 0:00:42]} 19. h3 {[%emt 0:00:12]} Nd7 {
[%emt 0:01:02]} 20. Bd4 {[%emt 0:00:42]} Qf8 {[%emt 0:00:10]} 21. Qe3 {[%emt 0:
00:35]} Re8 {[%emt 0:00:57]} 22. g4 {[%emt 0:00:29]} f6 {[%emt 0:00:05]} 23.
Qc1 {[%emt 0:00:32]} Bf7 {[%emt 0:00:19]} 24. Rxe8 {[%emt 0:00:18]} Bxe8 {
[%emt 0:00:01]} 25. Qe3 {[%emt 0:00:51]} Bg6 {[%emt 0:00:21]} 26. f4 {[%emt 0:
00:02]} Qe8 {[%emt 0:00:18]} 27. Kf2 {[%emt 0:00:10]} Qxe3+ {[%emt 0:00:10]}
28. Kxe3 {[%emt 0:00:01]} Bf7 {[%emt 0:00:09]} 29. Kd2 {[%emt 0:00:12]} Kf8 {
[%emt 0:00:33]} 30. Bf3 {[%emt 0:00:03]} Ke8 {[%emt 0:00:12]} 31. Bd1 {[%emt 0:
00:05]} Nf8 {[%emt 0:01:40]} 32. f5 {[%emt 0:00:25]} Nd7 {[%emt 0:00:04]} 33.
Bxa4 {[%emt 0:00:07]} g6 {[%emt 0:00:09]} 34. fxg6 {[%emt 0:00:38]} Bxg6 {
[%emt 0:00:05]} 35. Bd1 {[%emt 0:00:07]} Ke7 {[%emt 0:00:11]} 36. Ke3 {[%emt 0:
00:16]} Ke6 {[%emt 0:00:19]} 37. b4 {[%emt 0:00:07]} Be8 {[%emt 0:00:06]} 38.
a4 {[%emt 0:00:08]} Nb8 {[%emt 0:00:23]} 39. Bc3 {[%emt 0:00:16]} Na6 {[%emt 0:
00:06]} 40. d4 {[%emt 0:00:11]} Nc7 {[%emt 0:00:03]} 41. Be1 {[%emt 0:00:13]}
Bg6 {[%emt 0:00:42]} 42. Bg3 {[%emt 0:00:02]} Na6 {[%emt 0:00:09]} 43. b5 {
[%emt 0:00:02]} Nb4 {[%emt 0:00:09]} 44. Kd2 {[%emt 0:00:15]} cxb5 {[%emt 0:00:
03]} 45. axb5 {[%emt 0:00:03]} Kd7 {[%emt 0:00:02]} 46. Bb3 {[%emt 0:00:12]}
1-0

[Event "Turning Torso Chess Event 2021"]
[Site "Malmoe"]
[Date "2021.08.22"]
[Round "16.4"]
[White "Hellers, Ferdinand"]
[Black "Hector, Jonny"]
[Result "0-1"]
[ECO "D02"]
[WhiteElo "2592"]
[BlackElo "2465"]
[Annotator "ChessBase"]
[PlyCount "72"]
[EventDate "2021.08.20"]
[EventType "tourn"]
[EventCountry "SWE"]
[SourceTitle "playchess.com"]
[Source "ChessBase"]
[SourceQuality "1"]
[TimeControl "900+5"]

1. Nf3 {[%emt 0:00:16]} d5 {[%emt 0:00:02]} 2. d4 {[%emt 0:00:08]} Nf6 {
[%emt 0:00:03]} 3. Bf4 {[%emt 0:00:03]} c5 {[%emt 0:00:03]} 4. e3 {[%emt 0:00:
06]} Nc6 {[%emt 0:00:04]} 5. Nbd2 {[%emt 0:00:04]} cxd4 {[%emt 0:00:29]} 6.
exd4 {[%emt 0:00:02]} Bf5 {[%emt 0:00:11]} 7. c3 {[%emt 0:00:15]} e6 {[%emt 0:
00:04]} 8. Be2 {[%emt 0:01:28]} Bd6 {[%emt 0:00:00]} 9. Bxd6 {[%emt 0:00:21]}
Qxd6 {[%emt 0:00:05]} 10. O-O {[%emt 0:00:05]} h6 {[%emt 0:00:05]} 11. Nb3 {
[%emt 0:00:05]} O-O {[%emt 0:00:05]} 12. Bd3 {[%emt 0:00:05]} Be4 {[%emt 0:00:
05]} 13. Qe2 {[%emt 0:00:05]} Bxd3 {[%emt 0:00:05]} 14. Qxd3 {[%emt 0:00:05]}
Ne4 {[%emt 0:00:05]} 15. Rae1 {[%emt 0:00:05]} a5 {[%emt 0:00:05]} 16. Nbd2 {
[%emt 0:00:05]} f5 {[%emt 0:00:05]} 17. g3 {[%emt 0:00:05]} a4 {[%emt 0:00:05]}
18. a3 {[%emt 0:00:05]} b5 {[%emt 0:00:05]} 19. Qe3 {[%emt 0:00:05]} Na5 {
[%emt 0:00:05]} 20. Ne5 {[%emt 0:00:05]} Nc4 {[%emt 0:00:05]} 21. Ndxc4 {
[%emt 0:00:05]} bxc4 {[%emt 0:00:05]} 22. Re2 {[%emt 0:00:05]} Rab8 {[%emt 0:
00:05]} 23. Rfe1 {[%emt 0:00:05]} Rb6 {[%emt 0:00:05]} 24. f3 {[%emt 0:00:05]}
Nf6 {[%emt 0:00:05]} 25. Ng6 {[%emt 0:00:05]} Re8 {[%emt 0:00:05]} 26. Qf2 {
[%emt 0:00:05]} Nd7 {[%emt 0:00:05]} 27. Nf4 {[%emt 0:00:05]} Nf8 {[%emt 0:00:
05]} 28. h4 {[%emt 0:00:05]} g6 {[%emt 0:00:05]} 29. Re5 {[%emt 0:00:05]} Rb5 {
[%emt 0:00:05]} 30. g4 {[%emt 0:00:05]} fxg4 {[%emt 0:00:05]} 31. fxg4 {
[%emt 0:00:05]} Re7 {[%emt 0:00:05]} 32. Qc2 {[%emt 0:00:05]} Rg7 {[%emt 0:00:
05]} 33. h5 {[%emt 0:00:05]} gxh5 {[%emt 0:00:05]} 34. Nxh5 {[%emt 0:00:05]}
Rxg4+ {[%emt 0:00:05]} 35. Kf1 {[%emt 0:00:05]} Qe7 {[%emt 0:00:05]} 36. Qf2 {
[%emt 0:00:05]} Rg6 {[%emt 0:00:05]} 0-1

[Event "Turning Torso Chess Event 2021"]
[Site "Malmoe"]
[Date "2021.08.22"]
[Round "10.3"]
[White "Schussler, Harry"]
[Black "Agrest, Evgenij"]
[Result "1/2-1/2"]
[ECO "D02"]
[WhiteElo "2410"]
[BlackElo "2568"]
[Annotator "RC"]
[PlyCount "88"]
[EventDate "2021.08.20"]
[EventType "tourn"]
[EventCountry "SWE"]
[SourceTitle "playchess.com"]
[Source "ChessBase"]
[SourceQuality "1"]
[TimeControl "900+5"]

1. d4 {[%emt 0:00:02]} d5 {[%emt 0:00:08]} 2. Nf3 {[%emt 0:00:08]} Nf6 {
[%emt 0:00:07]} 3. Bf4 {[%emt 0:00:04]} c5 {[%emt 0:00:10]} 4. e3 {[%emt 0:00:
56]} Nc6 {[%emt 0:00:15]} 5. c3 {[%emt 0:00:37]} Nh5 {[%emt 0:00:53]} 6. Be5 {
[%emt 0:02:31]} f6 {[%emt 0:01:01]} 7. Bg3 {[%emt 0:00:14]} e6 {[%emt 0:01:40]}
8. Nbd2 {[%emt 0:00:11]} g6 {[%emt 0:00:43]} 9. Be2 {[%emt 0:01:11]} cxd4 {
[%emt 0:00:36]} 10. cxd4 {[%emt 0:01:28]} Be7 {[%emt 0:01:03]} 11. O-O {
[%emt 0:00:25]} O-O {[%emt 0:00:48]} 12. Rc1 {[%emt 0:00:55]} Nxg3 {[%emt 0:00:
29]} 13. hxg3 {[%emt 0:00:04]} Kg7 {[%emt 0:00:02]} 14. e4 {[%emt 0:01:11]}
dxe4 {[%emt 0:01:10]} 15. Nxe4 {[%emt 0:00:02]} f5 {[%emt 0:00:02]} 16. Nc5 {
[%emt 0:00:19]} Bf6 {[%emt 0:00:05]} 17. Bc4 {[%emt 0:02:48]} Re8 {[%emt 0:00:
44]} 18. d5 {[%emt 0:01:15]} exd5 {[%emt 0:00:38]} 19. Bxd5 {[%emt 0:00:02]}
Qb6 {[%emt 0:01:00]} 20. Na4 {[%emt 0:01:48]} Qa6 {[%emt 0:00:48]} 21. Qb3 {
[%emt 0:00:16]} Rd8 {[%emt 0:01:30]} 22. Rfd1 {[%emt 0:00:03]} Ne7 {[%emt 0:00:
29]} 23. Nc5 {[%emt 0:00:06]} Qb6 {[%emt 0:00:01]} 24. Ne6+ {[%emt 0:00:05]}
Bxe6 {[%emt 0:00:04]} 25. Bxe6 {[%emt 0:00:03]} Bxb2 {[%emt 0:00:35]} 26. Qxb6
{[%emt 0:00:02]} axb6 {[%emt 0:00:02]} 27. Rxd8 {[%emt 0:00:02]} Rxd8 {[%emt 0:
00:01]} 28. Rc7 {[%emt 0:00:02]} Kf6 {[%emt 0:00:03]} 29. Bb3 {[%emt 0:00:01]}
Rd6 {[%emt 0:00:18]} 30. Rxb7 {[%emt 0:00:02]} Ba3 {[%emt 0:00:05]} 31. Ne5 {
[%emt 0:00:08]} b5 {[%emt 0:01:33]} 32. Rxb5 {[%emt 0:00:11]} Ra6 {[%emt 0:00:
10]} 33. f4 {[%emt 0:00:06]} Nc6 {[%emt 0:00:11]} 34. Nxc6 {[%emt 0:00:07]}
Rxc6 35. Kf2 {[%emt 0:00:03]} h6 {[%emt 0:00:09]} 36. Rb7 {[%emt 0:00:03]} g5 {
[%emt 0:00:01]} 37. Rb5 {[%emt 0:00:08]} Bc5+ {[%emt 0:00:13]} 38. Kf3 {
[%emt 0:00:03]} Bd4 {[%emt 0:00:02]} 39. Rd5 {[%emt 0:00:06]} Rc3+ {[%emt 0:00:
06]} 40. Ke2 {[%emt 0:00:01]} Bg1 {[%emt 0:00:01]} 41. Rd3 {[%emt 0:00:03]}
Rxd3 {[%emt 0:00:02]} 42. Kxd3 {[%emt 0:00:02]} Bh2 {[%emt 0:00:02]} 43. fxg5+
{[%emt 0:00:02]} hxg5 {[%emt 0:00:01]} 44. Ke2 {[%emt 0:00:01]} Bxg3 {[%emt 0:
00:01]} 1/2-1/2

[Event "Turning Torso Chess Event 2021"]
[Site "Malmoe"]
[Date "2021.08.22"]
[Round "13.4"]
[White "Westerberg, Jonathan"]
[Black "Pantzar, Milton"]
[Result "1/2-1/2"]
[ECO "B13"]
[WhiteElo "2526"]
[BlackElo "2424"]
[Annotator "RC"]
[PlyCount "78"]
[EventDate "2021.08.20"]
[EventType "tourn"]
[EventCountry "SWE"]
[SourceTitle "playchess.com"]
[Source "ChessBase"]
[SourceQuality "1"]
[TimeControl "900+5"]

1. e4 {[%emt 0:00:02]} c6 {[%emt 0:00:02]} 2. d4 {[%emt 0:00:26]} d5 {[%emt 0:
00:02]} 3. exd5 {[%emt 0:00:01]} cxd5 {[%emt 0:00:02]} 4. c4 {[%emt 0:00:01]}
Nf6 {[%emt 0:00:10]} 5. Nc3 {[%emt 0:00:03]} Nc6 {[%emt 0:00:17]} 6. Nf3 {
[%emt 0:02:05]} a6 {[%emt 0:00:03]} 7. h3 {[%emt 0:01:04]} Be6 {[%emt 0:02:14]}
8. cxd5 {[%emt 0:01:57]} Bxd5 {[%emt 0:00:28]} 9. Nxd5 {[%emt 0:00:28]} Qxd5 {
[%emt 0:00:38]} 10. Be2 {[%emt 0:00:01]} e6 {[%emt 0:00:09]} 11. O-O {[%emt 0:
00:08]} Be7 {[%emt 0:00:26]} 12. Be3 {[%emt 0:00:02]} O-O {[%emt 0:00:13]} 13.
a3 {[%emt 0:00:01]} Rfd8 {[%emt 0:00:47]} 14. Rc1 {[%emt 0:00:29]} Rac8 {
[%emt 0:01:45]} 15. Bc4 {[%emt 0:00:01]} Qh5 {[%emt 0:00:22]} 16. Qe2 {[%emt 0:
00:25]} Nd5 {[%emt 0:00:30]} 17. b4 {[%emt 0:00:45]} b5 {[%emt 0:01:27]} 18.
Bb3 {[%emt 0:01:19]} Nxe3 {[%emt 0:01:35]} 19. fxe3 {[%emt 0:00:02]} a5 {
[%emt 0:00:09]} 20. d5 {[%emt 0:00:48]} exd5 {[%emt 0:00:01]} 21. Qxb5 {
[%emt 0:00:02]} Qh6 {[%emt 0:00:46]} 22. Kh1 {[%emt 0:01:59]} Qxe3 {[%emt 0:01:
03]} 23. Rxc6 {[%emt 0:01:26]} Rxc6 {[%emt 0:01:23]} 24. Qxc6 {[%emt 0:00:02]}
Qxb3 {[%emt 0:00:01]} 25. bxa5 {[%emt 0:00:19]} Qxa3 {[%emt 0:01:17]} 26. a6 {
[%emt 0:00:18]} Rd6 {[%emt 0:00:44]} 27. Qe8+ {[%emt 0:00:52]} Bf8 {[%emt 0:00:
03]} 28. Ne5 {[%emt 0:00:10]} Rf6 {[%emt 0:00:31]} 29. Rxf6 {[%emt 0:00:02]}
gxf6 {[%emt 0:00:04]} 30. Qxf7+ {[%emt 0:00:16]} Kh8 {[%emt 0:00:01]} 31. Qxf6+
{[%emt 0:00:57]} Kg8 {[%emt 0:00:01]} 32. Qe6+ {[%emt 0:00:35]} Kh8 {[%emt 0:
00:07]} 33. Qf6+ {[%emt 0:00:07]} Kg8 {[%emt 0:00:01]} 34. Nd7 {[%emt 0:00:28]}
Qc1+ {[%emt 0:00:11]} 35. Kh2 {[%emt 0:00:05]} Qc7+ {[%emt 0:00:01]} 36. Ne5 {
[%emt 0:00:12]} Bd6 {[%emt 0:00:10]} 37. Qg5+ {[%emt 0:00:04]} Kf8 {[%emt 0:00:
09]} 38. Qf6+ {[%emt 0:00:00]} Kg8 {[%emt 0:00:09]} 39. Qe6+ {[%emt 0:00:01]}
Kf8 {[%emt 0:00:06]} 1/2-1/2

[Event "Turning Torso Chess Event 2021"]
[Site "Malmoe"]
[Date "2021.08.22"]
[Round "16.5"]
[White "Brynell, Stellan"]
[Black "Blomqvist, Erik"]
[Result "0-1"]
[ECO "B22"]
[WhiteElo "2422"]
[BlackElo "2537"]
[Annotator "ChessBase"]
[PlyCount "84"]
[EventDate "2021.08.20"]
[EventType "tourn"]
[EventCountry "SWE"]
[SourceTitle "playchess.com"]
[Source "ChessBase"]
[SourceQuality "1"]
[TimeControl "900+5"]

1. e4 {[%emt 0:00:03]} c5 {[%emt 0:00:06]} 2. c3 {[%emt 0:00:03]} Nf6 {[%emt 0:
00:03]} 3. e5 {[%emt 0:00:01]} Nd5 {[%emt 0:00:01]} 4. d4 {[%emt 0:00:02]} cxd4
{[%emt 0:00:03]} 5. Nf3 {[%emt 0:00:02]} d6 {[%emt 0:00:02]} 6. cxd4 {[%emt 0:
00:02]} Nc6 {[%emt 0:00:08]} 7. Bc4 {[%emt 0:00:02]} Nb6 {[%emt 0:00:18]} 8.
Bb5 {[%emt 0:00:03]} dxe5 {[%emt 0:00:02]} 9. Nxe5 {[%emt 0:00:04]} Bd7 {
[%emt 0:00:07]} 10. Nxd7 {[%emt 0:00:02]} Qxd7 {[%emt 0:00:01]} 11. Nc3 {
[%emt 0:00:03]} e6 {[%emt 0:00:08]} 12. O-O {[%emt 0:00:04]} Rd8 {[%emt 0:00:
04]} 13. Be3 {[%emt 0:01:13]} Be7 {[%emt 0:00:48]} 14. Rc1 {[%emt 0:00:21]} O-O
{[%emt 0:00:19]} 15. Qf3 {[%emt 0:00:11]} Rc8 {[%emt 0:00:57]} 16. d5 {[%emt 0:
01:08]} Nxd5 {[%emt 0:00:08]} 17. Rfd1 {[%emt 0:01:00]} a6 {[%emt 0:02:04]} 18.
Nxd5 {[%emt 0:01:43]} exd5 {[%emt 0:00:02]} 19. Rxd5 {[%emt 0:00:05]} Qe6 {
[%emt 0:00:01]} 20. Bf1 {[%emt 0:00:38]} Bf6 {[%emt 0:00:38]} 21. Rdc5 {
[%emt 0:03:08]} Bxb2 {[%emt 0:01:28]} 22. R1c2 {[%emt 0:00:25]} Nd4 {[%emt 0:
01:11]} 23. Bxd4 {[%emt 0:01:55]} Bxd4 {[%emt 0:00:03]} 24. Rxc8 {[%emt 0:00:
15]} Rxc8 {[%emt 0:00:02]} 25. Qd5 {[%emt 0:01:00]} Bxf2+ {[%emt 0:00:51]} 26.
Kh1 {[%emt 0:00:01]} Rf8 {[%emt 0:00:54]} 27. Qxe6 {[%emt 0:03:02]} fxe6 {
[%emt 0:00:01]} 28. Bc4 {[%emt 0:00:23]} Rf6 {[%emt 0:01:05]} 29. g3 {[%emt 0:
00:02]} Kf8 {[%emt 0:00:34]} 30. Bb3 {[%emt 0:00:01]} Bd4 {[%emt 0:02:20]} 31.
Rc8+ {[%emt 0:00:20]} Ke7 {[%emt 0:00:01]} 32. Rc7+ {[%emt 0:00:02]} Kd6 {
[%emt 0:00:01]} 33. Rxb7 {[%emt 0:00:05]} Rf1+ {[%emt 0:00:43]} 34. Kg2 {
[%emt 0:00:00]} Rf2+ {[%emt 0:00:01]} 35. Kh3 {[%emt 0:00:02]} h5 {[%emt 0:01:
09]} 36. Rb8 {[%emt 0:00:13]} e5 {[%emt 0:01:06]} 37. Rd8+ {[%emt 0:00:09]} Ke7
{[%emt 0:00:24]} 38. Rg8 {[%emt 0:00:06]} e4 {[%emt 0:00:03]} 39. Rh8 {[%emt 0:
00:09]} e3 {[%emt 0:00:09]} 40. Bc4 {[%emt 0:00:08]} e2 {[%emt 0:00:03]} 41.
Bxe2 {[%emt 0:00:01]} Rxe2 {[%emt 0:00:02]} 42. Rxh5 {[%emt 0:00:02]} Rxa2 {
[%emt 0:00:01]} 0-1

[Event "Turning Torso Chess Event 2021"]
[Site "Malmoe"]
[Date "2021.08.22"]
[Round "10.4"]
[White "Westerberg, Jonathan"]
[Black "Smith, Axel"]
[Result "1-0"]
[ECO "B23"]
[WhiteElo "2526"]
[BlackElo "2451"]
[Annotator "RC"]
[PlyCount "67"]
[EventDate "2021.08.20"]
[EventType "tourn"]
[EventCountry "SWE"]
[SourceTitle "playchess.com"]
[Source "ChessBase"]
[SourceQuality "1"]
[TimeControl "900+5"]

1. e4 {[%emt 0:00:05]} c5 {[%emt 0:00:02]} 2. Nc3 {[%emt 0:00:12]} g6 {[%emt 0:
00:46]} 3. f4 {[%emt 0:00:02]} Bg7 {[%emt 0:00:06]} 4. Nf3 {[%emt 0:00:02]} Nc6
{[%emt 0:00:51]} 5. Bb5 {[%emt 0:00:02]} Nd4 {[%emt 0:00:05]} 6. O-O {[%emt 0:
00:03]} Nxb5 {[%emt 0:02:59]} 7. Nxb5 {[%emt 0:00:02]} d6 {[%emt 0:00:15]} 8.
d3 {[%emt 0:00:27]} Nf6 {[%emt 0:00:14]} 9. Nc3 {[%emt 0:00:28]} b6 {[%emt 0:
01:42]} 10. Qe1 {[%emt 0:00:14]} Bb7 {[%emt 0:00:21]} 11. Qh4 {[%emt 0:00:28]}
Qd7 {[%emt 0:00:57]} 12. a4 {[%emt 0:01:34]} d5 {[%emt 0:00:22]} 13. e5 {
[%emt 0:01:14]} d4 {[%emt 0:00:10]} 14. Ne2 {[%emt 0:01:12]} Nd5 {[%emt 0:00:
02]} 15. c3 {[%emt 0:02:03]} Ne3 {[%emt 0:00:39]} 16. Bxe3 {[%emt 0:00:02]}
dxe3 {[%emt 0:00:01]} 17. d4 {[%emt 0:00:20]} Qd5 {[%emt 0:01:01]} 18. f5 {
[%emt 0:01:32]} Qe4 {[%emt 0:01:02]} 19. fxg6 {[%emt 0:01:31]} hxg6 {[%emt 0:
00:08]} 20. Qg3 {[%emt 0:01:12]} Bh6 {[%emt 0:00:47]} 21. a5 {[%emt 0:00:31]}
O-O {[%emt 0:00:51]} 22. a6 {[%emt 0:01:03]} Bc6 {[%emt 0:00:10]} 23. h4 {
[%emt 0:00:28]} Kg7 {[%emt 0:00:36]} 24. Ng5 {[%emt 0:00:16]} Bxg5 {[%emt 0:00:
01]} 25. Qxg5 {[%emt 0:00:04]} Rh8 {[%emt 0:00:40]} 26. Rf4 {[%emt 0:00:10]}
Qc2 {[%emt 0:00:00]} 27. Qxe7 {[%emt 0:00:07]} Raf8 {[%emt 0:00:29]} 28. Qf6+ {
[%emt 0:01:03]} Kg8 {[%emt 0:00:01]} 29. Qxc6 {[%emt 0:00:01]} Qxe2 {[%emt 0:
00:01]} 30. e6 {[%emt 0:00:24]} Qd2 {[%emt 0:02:01]} 31. exf7+ {[%emt 0:00:05]}
Kh7 {[%emt 0:00:01]} 32. h5 {[%emt 0:00:16]} gxh5 {[%emt 0:00:08]} 33. Qe4+ {
[%emt 0:00:04]} Kh6 {[%emt 0:00:11]} 34. Rf6+ {[%emt 0:00:06]} 1-0